Cogmind - Beta 14 @@@ ROGUE MODE // 2024.10.22 @ 18:32:35 Player: WazdakkaGutsmek Result: Destroyed by Y-45 Defender with Beam Rifle Performance ------------- Evolutions (1) 500 Regions Visited (3) 600 Robots Destroyed (23) 115 Value Destroyed (427) 427 Prototype IDs (0) 0 Alien Tech Used (0) 0 Bonus (0) 0 TOTAL SCORE: 1642 Bonus ------- None Cogmind --------- Core Integrity 0/400 Matter 300/300 Energy 100/100 System Corruption 0% Temperature Cool (9) Movement Core (1350) Ox26 Location -9/Materials Parts ------- > --- POWER (1) -------- (None) > --- PROPULSION (2) --- (None) > --- UTILITY (4) ------ Huge Storage Unit > --- WEAPON (2) ------- (None) > --- INVENTORY (25) --- Ion Engine Ion Engine Wheel Compact Wheel Improved Heat Sink Large Matter Pod (82) Rocket Launcher Peak State ------------ > --- POWER ------------ Light Ion Engine > --- PROPULSION ------- Light Treads Light Treads > --- UTILITY ---------- Improved Heat Sink Huge Storage Unit Medium Armor Plating > --- WEAPON ----------- EM Pulse Gun Light Assault Rifle > --- INVENTORY -------- Ion Engine Ion Engine Wheel Compact Wheel Improved Heat Sink Large Matter Pod Rocket Launcher [Rating: 12] Favorites ----------- Power Light Ion Engine Engine Light Ion Engine Propulsion Light Treads Treads Light Treads Leg Aluminum Leg Utility Improved Heat Sink Device Improved Heat Sink Storage Small Storage Unit Protection Medium Armor Plating Weapon Light Assault Rifle Energy Gun EM Pulse Gun Ballistic Gun Light Assault Rifle Build | -11 -10 -10 -9 ------- Run | Yrd Mat Min Mat Slots Evolved 2 | . . . 2 Power . | . . . . Propulsion . | . . . . Utility 2 | . . . 2 Weapon . | . . . . Parts Attached 10 | . 2 6 2 Power 2 | . 1 1 . Engine 2 | . 1 1 . Core . | . . . . Reactor . | . . . . Propulsion 2 | . . 2 . Treads 2 | . . 2 . Leg . | . . . . Wheel . | . . . . Hover . | . . . . Flight . | . . . . Utility 4 | . 1 1 2 Device 2 | . 1 1 . Storage 1 | . . . 1 Processor . | . . . . Hackware . | . . . . Protection 1 | . . . 1 Artifact . | . . . . Weapon 2 | . . 2 . Energy Gun 1 | . . 1 . Energy Cannon . | . . . . Ballistic Gun 1 | . . 1 . Ballistic Cannon . | . . . . Launcher . | . . . . Special Weapon . | . . . . Impact Weapon . | . . . . Slashing Weapon . | . . . . Piercing Weapon . | . . . . Special Melee Weapon . | . . . . Unidentified Prototypes . | . . . . Parts Lost 9 | . . 2 7 Power 1 | . . . 1 Propulsion 3 | . . 1 2 Utility 2 | . . . 2 Weapon 3 | . . 1 2 Highest Loss Streak 5 | . . 2 5 To Critical Strikes . | . . . . Average Slot Usage (%) 87 | . 95 95 60 Engine 12 | . 14 14 9 Treads 13 | . . 17 13 Leg 9 | . 28 8 . Device 12 | . 9 14 9 Storage 13 | . 14 14 11 Energy Gun 11 | . 14 11 8 Ballistic Gun 12 | . 14 14 7 Peak Build Rating 12 | . 9 10 12 Average Rating 8 | . 7 8 8 On Entrance 7 | 6 6 9 10 Naked Turns . | . . . . Heaviest Build 94 | 13 14 14 94 Greatest Support 40 | 20 20 40 40 Greatest Overweight (x) 26 | . . 1 26 Average Overweight (x) . | . . . 3 Largest Inventory Capacity 25 | . 8 8 25 Average Capacity 11 | . 8 8 24 Most Carried 8 | . 7 8 7 Average Carried 6 | . 6 6 7 Final Capacity 25 | 8 8 8 25 Final Carried 7 | 6 7 7 7 Class Distribution -------------------- 100% | Mutant Dominant Class ---------------- Mutant | -10/Materials Mutant | -10/Mines Mutant | -9/Materials Resources | -11 -10 -10 -9 ----------- Run | Yrd Mat Min Mat Matter Collected 395 | 188 43 164 . Remotely . | . . . . Salvage Created 636 | . 113 523 . Parts 53 | . 11 42 . Haulers Intercepted . | . . . . Recyclers Shooed 1 | . . 1 . Parts Field Recycled . | . . . . Retrieved Matter . | . . . . Parts Self-Destructed . | . . . . Prevented . | . . . . Kills | -11 -10 -10 -9 ------- Run | Yrd Mat Min Mat Combat Hostiles Destroyed 18 | . 2 16 . Guns 16 | . 2 14 . AOE 2 | . . 2 . Classes Destroyed 6 | . 2 4 . Worker 1 | . . 1 . Builder 1 | . . 1 . Recycler 2 | . . 2 . Operator 1 | . 1 . . Swarmer 12 | . . 12 . Grunt 6 | . 2 4 . Best Kill Streak 5 | . 2 5 . Combat Bots Only 5 | . 2 5 . Max Kills in Single Turn 4 | . 1 4 . Gunslinging . | . . . . Exploded 2 | . . 2 . Melee . | . . . . Uniques/NPCs Destroyed . | . . . . Combat | -11 -10 -10 -9 -------- Run | Yrd Mat Min Mat Hostile Shots Fired 164 | . 12 85 67 Missed 44 | . 2 25 17 Damage Taken 1722 | . 134 635 953 Core 540 | . 29 98 413 Absorbed by Shields . | . . . . Core Remaining (%) 74 | 100 . 49 . Volleys Fired 68 | . 11 52 5 Largest 2 | . 2 2 2 Hottest 60 | . 60 60 60 Shots Fired 110 | . 22 82 6 Gun 110 | . 22 82 6 Cannon . | . . . . Launcher . | . . . . Special . | . . . . Kinetic 74 | . 11 62 1 Thermal . | . . . . Explosive . | . . . . Electromagnetic 36 | . 11 20 5 Robot Hit Streak 16 | . 4 16 3 Robot Miss Streak 4 | . 4 4 2 Penetration Max . | . . . . Secondary Targets 2 | . . 2 . Max Gunslinging Chain 1 | . . 1 . Shots Hit Robots 68 | . 11 54 3 Core Hits 36 | . 7 28 1 Critical Kills . | . . . . Critical Parts Destroyed . | . . . . Critical Strikes 2 | . . 1 1 Corrupt 2 | . . 1 1 Melee Attacks . | . . . . Impact . | . . . . Slashing . | . . . . Piercing . | . . . . Sneak Attacks . | . . . . Combat Hostiles . | . . . . Follow-up Attacks . | . . . . Damage Inflicted 913 | . 137 660 116 Guns 672 | . 137 501 34 Cannons . | . . . . Explosions 223 | . . 147 76 Melee . | . . . . Ramming 18 | . . 12 6 Kinetic 400 | . 57 343 . Thermal 162 | . . 147 15 Explosive 61 | . . . 61 Electromagnetic 272 | . 80 158 34 Impact . | . . . . Slashing . | . . . . Piercing . | . . . . Highest Corruption . | . . . . Average Corruption . | . . . . Corruption Purged . | . . . . Corruption Blocked . | . . . . Overload Shots . | . . . . Overflow Damage 66 | . . . 66 Projectiles . | . . . . Explosions 66 | . . . 66 Melee . | . . . . Knockbacks 1 | . . 1 . Impact 1 | . . 1 . Kinetic . | . . . . Secondary . | . . . . Self-Inflicted Damage 228 | . . . 228 Shots 2 | . . . 2 Rammed 10 | . . 3 7 Targets Rammed 11 | . . 4 7 Kicked . | . . . . Crushed 1 | . . 1 . Highest Temperature 136 | . 136 6 . Average Temperature 49 | . 78 2 . Received Heat Transfer 585 | . 96 237 252 Siege Activations . | . . . . Robots Corrupted . | . . . . Combat Hostiles . | . . . . Parts Fried . | . . . . Impact Corruptions . | . . . . Robots Melted . | . . . . Combat Hostiles . | . . . . Parts Melted 1 | . . 1 . Heat Transferred 200 | . . 150 50 Parts Sabotaged . | . . . . Parts Stolen . | . . . . Parts Stripped . | . . . . Power Chain Reactions 1 | . . 1 . Alert | -11 -10 -10 -9 ------- Run | Yrd Mat Min Mat Peak Influence 277 | . 97 277 104 Initial 39 | . . 37 39 Average 111 | . 56 142 67 Maximum Alert Level 1 | . . 1 . Low Security (%) 78 | . 100 65 100 Level 1 21 | . . 34 . Level 2 . | . . . . Level 3 . | . . . . Level 4 . | . . . . Level 5 . | . . . . High Security . | . . . . Max Security . | . . . . Squads Dispatched . | . . . . Investigation . | . . . . Extermination . | . . . . Reinforcement . | . . . . Assault . | . . . . Garrison . | . . . . Intercept . | . . . . Searches Triggered . | . . . . Construction Impeded . | . . . . Haulers Reinforced . | . . . . Active Scanning Responses . | . . . . Cargo Convoy Interrupts . | . . . . Stealth | -11 -10 -10 -9 --------- Run | Yrd Mat Min Mat Distress Signals 1 | . . . 1 Communications Jammed . | . . . . Distress Signals . | . . . . Times Spotted 25 | . 5 17 3 Peak Tracking Total 3 | . 2 3 2 Tactical Retreats 1 | . . 1 . Traps | -11 -10 -10 -9 ------- Run | Yrd Mat Min Mat Traps Triggered . | . . . . Indirectly . | . . . . Trap Hack Attempts . | . . . . Triggered . | . . . . Disarmed . | . . . . Reprogrammed . | . . . . Reused . | . . . . Traps Extracted . | . . . . Installed . | . . . . Triggered . | . . . . Machines | -11 -10 -10 -9 ---------- Run | Yrd Mat Min Mat Machines Disabled 3 | . . . 3 Max in Single Turn 3 | . . . 3 Machines Repaired . | . . . . Machines Dismantled . | . . . . Machines Sabotaged . | . . . . Overloaded Fab Kills . | . . . . Hacking | -11 -10 -10 -9 --------- Run | Yrd Mat Min Mat Machines Accessed 1 | . 1 . . Terminals 1 | . 1 . . Fabricators . | . . . . Repair Stations . | . . . . Recycling Units . | . . . . Scanalyzers . | . . . . Garrison Access . | . . . . Total Hacks 3 | . 3 . . Successful 2 | . 2 . . Failed 1 | . 1 . . Catastrophic . | . . . . Database Lockouts . | . . . . Manual 1 | . 1 . . Terminals 3 | . 3 . . Fabricators . | . . . . Repair Stations . | . . . . Recycling Units . | . . . . Scanalyzers . | . . . . Garrison Access . | . . . . Terminal Hacks 2 | . 2 . . Branch Access Points 1 | . 1 . . Hauler Manifests 1 | . 1 . . Fabricator Hacks . | . . . . Repair Station Hacks . | . . . . Recycling Unit Hacks . | . . . . Scanalyzer . | . . . . Garrison Access Hacks . | . . . . Unauthorized Hacks . | . . . . Terminals . | . . . . Fabricators . | . . . . Repair Stations . | . . . . Recycling Units . | . . . . Scanalyzers . | . . . . Garrison Access . | . . . . Data Cores Recovered 1 | . 1 . . Used 1 | . 1 . . Hacking Detections 1 | . 1 . . Full Trace Events . | . . . . Feedback Events . | . . . . Feedback Blocked . | . . . . Robot Schematics Acquired . | . . . . Robots Built . | . . . . Authchips . | . . . . Time . | . . . . Total Robot Build Rating . | . . . . Part Schematics Acquired . | . . . . Parts Built . | . . . . Authchips . | . . . . Time . | . . . . Total Part Build Rating . | . . . . Parts Repaired . | . . . . Time . | . . . . Parts Recycled . | . . . . Recycled Matter . | . . . . Retrieved Matter . | . . . . Retrieved Components . | . . . . Parts Scanalyzed . | . . . . Part Schematics Acquired . | . . . . Parts Damaged . | . . . . Bothacking | -11 -10 -10 -9 ------------ Run | Yrd Mat Min Mat Used RIF Installer . | . . . . Robots Hacked . | . . . . Non-combat . | . . . . Combat . | . . . . Robot Hacks Applied . | . . . . Relay Couplers Released . | . . . . Fabnet Peak Effective % . | . . . . Robots Rewired . | . . . . Allies Hacked . | . . . . Hacks Repelled . | . . . . Allies | -11 -10 -10 -9 -------- Run | Yrd Mat Min Mat Total Allies . | . . . . Largest Group . | . . . . Highest-Rated Group . | . . . . Highest-Rated Ally . | . . . . Total Orders . | . . . . Ally Attacks . | . . . . Total Damage . | . . . . Kills . | . . . . Allies Corrupted . | . . . . Allies Melted . | . . . . Intel | -11 -10 -10 -9 ------- Run | Yrd Mat Min Mat Robot Analysis Total . | . . . . Derelict Logs Recovered 1 | . . 1 . Drone Launches . | . . . . Drone Recoveries . | . . . . Exploration | -11 -10 -10 -9 ------------- Run | Yrd Mat Min Mat Turns Passed 1433 | . 220 872 341 Spaces Moved 676 | 1 153 453 69 Core 3 | . . . 3 Treads 347 | . . 281 66 Legs 326 | 1 153 172 . Wheels . | . . . . Hover . | . . . . Flight . | . . . . Fastest Speed 120 | 120 120 120 160 Average Speed 169 | 120 120 151 394 Slowest Speed 1350 | 120 120 190 1350 Overloaded Moves . | . . . . Propulsion Burnouts . | . . . . Robots Hopped . | . . . . Cave-ins Triggered . | . . . . Exploration Rate (%) 31 | 2 37 75 12 Regions Visited 3 Branch Regions 1 Pre-discovered Areas . | . . . . Known Exits Taken 1 | . 1 . . Unknown Exits Taken 2 | 1 . 1 . Scrap Searched 1 | . . 1 . Spaces Dug . | . . . . Terrain Destroyed 30 | . . 3 27 Melee . | . . . . Projectile . | . . . . AOE 30 | . . 3 27 Terrain Rammed . | . . . . Walls Destroyed . | . . . . Machines Disabled . | . . . . Actions | -11 -10 -10 -9 --------- Run | Yrd Mat Min Mat Total 824 | . 168 567 89 Wait 58 | . 3 50 5 Move 673 | . 152 452 69 Hop . | . . . . Pick Up 2 | . . 2 . Fast Attach 3 | . 1 . 2 Attach 3 | . . 3 . Detach . | . . . . Swap 4 | . 1 3 . Drop 2 | . . 1 1 Fire 68 | . 11 52 5 Melee . | . . . . Ram 2 | . . . 2 Kick . | . . . . Crush 9 | . . 4 5 Escape Stasis . | . . . . Rewire . | . . . . Trap . | . . . . Miscellaneous . | . . . . Route ------- -11/Scrapyard -10/Materials -10/Mines (discovered 2 exits: [*Mat] / [*Exi]) -9/Materials History --------- Turn | Location | Event 1 | -11/Scrapyard | Discovered new exit (range 0) 1 | -11/Scrapyard | Entered Materials 134 | -10/Materials | Identified exit to Mines 221 | -10/Materials | Entered Mines 250 | -10/Mines | Discovered new exit (range 6) 311 | -10/Mines | Build established: Mutant 621 | -10/Mines | Received a Rocket Launcher from a helpful Derelict 641 | -10/Mines | Deemed a non-threat by the Exiles lab entrance 641 | -10/Mines | Discovered new exit (range 5) 686 | -10/Mines | A weapon hastily lodged in a ceiling crevice suddenly fell to the ground 859 | -10/Mines | Core integrity fell below 50% 965 | -10/Mines | Learned 2 Materials zone layouts 1093 | -10/Mines | Entered Materials 1093 | -9/Materials | Evolved 2 slots: Utility x2 1401 | -9/Materials | Core integrity fell below 50% 1419 | -9/Materials | Core integrity fell below 20% 1428 | -9/Materials | Lost 5 parts (1p1n1u2w) 1434 | -9/Materials | Destroyed by Y-45 Defender with Beam Rifle Last Messages --------------- 01290_ U-05 Engineer lays Concrete. 01295_ K-01 Serf collects debris. 01303_ U-05 Engineer lays Concrete. 01325_ T-07 Excavator is excavating. 01325_ Lgt. Assault Rifle destroyed. 01328_ T-07 Excavator is excavating. 01343_ EM Pulse Gun destroyed. 01345_ Slammed into Y-45 Defender. 01345_ T-07 Excavator is excavating. 01350_ Slammed into Y-45 Defender. 01354_ T-07 Excavator is excavating. 01354_ Slammed into Y-45 Defender. 01364_ Lgt. Treads destroyed. 01369_ Slammed into Y-45 Defender. 01370_ Lgt. Ion Engine destroyed. 01383_ Slammed into Y-45 Defender. 01397_ Imp. Heat Sink destroyed. 01403_ Critical hit (Burn: +37). 01407_ U-05 Engineer lays Concrete. 01421_ R-06 Scavenger destroyed. Map ----- +----------------------------------------------------+ | ???????????????# ##### ! #??? | | ???????????????# """ # # #??? | | ???????????????# """"" # # #??? | | ???????????????# """"" # # #??? | | ???????????????# """"" + + #??? | | ???????????????# """ # # #??? | | ???????????????# # ###########??? | | ???????????????###"""""""" # #???? | | ????????????????#!! # #???? | | ????????????????#! # =#???? | | ????????????????#!! # # #???? | | ????????????????# + + #???? | | ????????????????# # # #???? | | ????????????????# # # #???? | | ????????????????# # # #???? | | ????????????????# # # #???? | | ????????????????# # ###########??? | | ????????????????### # # #??? | | ??????????????????#### # #??? | | ?????????????????????##### # #??? | | ?????????????????????????# # #??? | | ?????????????????????????# Y# ##??? | | ?????????????????????????# ### ##???? | | ??????????????????######## #??? ##????? | | ??????????????????""""" # #???####?????? | | ??????????????????""T"" @ #????????????? | | ????????????????# # #????????????? | | ????????????????# |# #????????????? | | ????????????????# ! ?# #????????????? | | ????????????????# """ ?# #????????????? | | ????????????????# """ ??# #????????????? | | ????????????????? """ ??# #????????????? | | ?????????????????? ???# +????????????? | | ??????????????????####???# #????????????? | | ?????????????????????????# #????????????? | | ?????????????????????????# =%#????????????? | | ?????????????????????????? =#????????????? | | ?????????????????????????? #????????????? | | ?????????????????????????? #????????????? | | ?????????????????????????? ?????????????? | | ??????????????????????????????????????????? | | ??????????????????????????????????????????? | | ??????????????????????????????????????????? | | ??????????????????????????????????????????? | | ??????????????????????????????????????????? | | ??????????????????????????????????????????? | | ??????????????????????????????????????????? | | ??????????????????????????????????????????? | | ??????????????????????????????????????????? | | ??????????????????????????????????????????? | +----------------------------------------------------+ Best States ------------- Heat Dissipation 42 Energy Generation 10 Energy Capacity 250 Matter Stores 300 Matter Capacity 300 Sight Range 16 Terrain Scan Density 10 Armor Coverage 225 Evasion (%) 55 Recoil Reduction 2 Item Schematics ----------------- None Robot Schematics ------------------ None Fabricated ------------ Nothing Alien Tech Used ----------------- None Achievements -------------- None Challenges ------------ None Game ------ Seed ParticleHybridMachine Manual? 0 Play Time 00:11:19 Cumulative 71.0 hours Start 2024.10.22 @ 18:02:59 End 2024.10.22 @ 18:32:35 Sessions 2 Manual Loads 0 Difficulty Rogue Special Mode None Game No. 66 Rogue 48 Adventurer 16 Explorer 2 Win Type - Total 1 Types 1/0/0/0/0/0/0/0/0 Lore% 16 Gallery% 45 Achievement% 39 Wizard Run 0 Options --------- Layout 2 ASCII 0 Keyboard 0 Movement Mouse Keybinds 1 Fullscreen 2 Font 24/Terminus Map View 50x44 Zoom Use 0% Tactical HUD 1 Map Filters NONE Filters NONE Steam X RUN: 903bfd6c-65e5-47e3-8ce9-a4858d1bc4b4